bitfinex/quotes_ETHUSD_20250411
["timestamp","ask_amount","ask_price","bid_price","bid_amount"]
[1744344608454,7.3601,1543.6,1543.3,7.34400838]
[1744344609076,7.3601,1543.6,1543.3,0.86453838]
[1744344609077,13.83869,1543.6,1543.3,0.86453838]
[1744344609888,13.83869,1543.6,1543.3,7.34415838]
[1744344611089,13.83869,1543.6,1543.3,0.19689489]
[1744344612389,6.582,1543.6,1543.4,6.47918]
[1744344612693,6.582,1543.6,1543.5,6.47878]
[1744344612869,7.24888,1544.0,1543.7,0.833]
[1744344613053,0.7721,1544.0,1543.7,7.31077]
[1744344613255,20.3051,1544.1,1543.8,0.19365035]
[1744344613858,6.47671,1544.0,1543.8,0.19365035]
[1744344614862,20.30523,1544.1,1543.8,0.19365035]
[1744344615290,20.30512,1544.1,1543.8,0.19365035]
[1744344616497,13.8286,1544.1,1543.8,0.19365035]
[1744344617195,20.3051,1544.1,1543.8,0.19365035]
[1744344618989,20.30515,1544.1,1543.8,0.19365035]
[1744344619189,6.47671,1544.0,1543.8,0.19365035]
[1744344619365,12.95371,1544.0,1543.8,0.19365035]
[1744344620093,12.95364,1544.0,1543.8,0.19365035]
[1744344620293,6.4771,1543.9,1543.8,0.19365035]
[1744344620689,12.95456,1543.9,1543.5,13.3716]
[1744344620889,12.95456,1543.9,1543.8,0.19360768]
[1744344621091,12.95456,1543.9,1543.5,13.3716]
[1744344621390,12.95446,1543.9,1543.5,19.85025]
[1744344621559,20.30488,1544.1,1543.6,0.19367665]
[1744344621764,20.30488,1544.1,1543.7,7.31078]
[1744344622165,20.30488,1544.1,1543.8,0.1935864]
[1744344622400,13.8284,1544.1,1543.8,0.1935864]
[1744344622696,20.30503,1544.1,1543.8,0.1935864]
[1744344623461,6.47669,1544.0,1543.8,0.1935864]
[1744344623861,13.8284,1544.1,1543.8,0.1935864]
[1744344624274,13.8284,1544.1,1543.7,13.78856]
[1744344624600,6.578,1544.2,1543.8,1.57242105]
[1744344624799,6.47587,1544.2,1543.9,6.47678]
[1744344625000,7.24759,1544.3,1543.8,1.57242105]
[1744344625001,13.82237,1544.4,1544.0,13.78603]
[1744344625200,7.34713,1544.4,1544.0,7.30948]
[1744344625416,6.47543,1544.3,1544.1,0.18960555]
[1744344627921,6.47584,1544.2,1544.1,0.18960555]
[1744344628075,8.530467,1544.2,1544.1,0.18960555]
[1744344628276,6.47668,1544.0,1543.9,6.06]
[1744344628472,6.47668,1544.0,1543.7,13.32218]
[1744344628683,6.47722,1543.9,1543.7,6.8443]
[1744344629307,6.47722,1543.9,1543.6,6.47819]
[1744344629609,6.47673,1544.0,1543.6,15.8764277]
[1744344629781,13.04934,1544.1,1543.8,0.7843]
[1744344629978,19.52584,1544.1,1543.8,0.7843]
[1744344630609,13.04934,1544.1,1543.8,0.7843]
[1744344630802,13.04934,1544.1,1543.7,6.47778]
[1744344631007,6.47685,1544.0,1543.7,7.26208]
[1744344631209,6.47685,1544.0,1543.7,8.92812577]
[1744344631676,13.04934,1544.1,1543.7,15.40589577]
[1744344632010,19.52584,1544.1,1543.7,8.92811577]
[1744344632310,6.47685,1544.0,1543.7,2.45034577]
[1744344632698,6.47685,1544.0,1543.7,8.92823577]
[1744344637813,6.47685,1544.0,1543.8,0.52305721]
[1744344638620,12.95373,1544.0,1543.8,0.52305721]
[1744344638986,12.95374,1544.0,1543.8,0.52305721]
[1744344640217,6.47685,1544.0,1543.8,0.52305721]
[1744344642214,13.04936,1544.1,1543.8,1.22314093]
[1744344642415,13.04936,1544.1,1543.8,7.70061093]
[1744344642712,6.573,1544.1,1543.9,0.60317366]
[1744344642899,6.573,1544.1,1543.9,14.68016303]
[1744344643105,6.573,1544.1,1544.0,1.12635722]
[1744344643418,6.47551,1544.3,1544.0,3.25269188]
[1744344643595,6.47551,1544.3,1544.0,3.61460125]
[1744344643985,12.95113,1544.3,1544.1,0.60317366]
[1744344644489,12.95113,1544.3,1544.2,0.52282915]
[1744344644691,6.47551,1544.3,1544.2,0.52282915]
[1744344644902,13.91798,1544.4,1544.0,15.07942466]
[1744344645211,13.14808,1544.4,1544.1,8.507109]
[1744344645389,19.6233,1544.4,1544.2,0.60230951]
[1744344645912,6.673,1544.4,1544.3,0.5211268]
[1744344646211,0.1,1544.4,1544.3,1.12343631]
[1744344646414,0.1,1544.4,1544.3,1.48458769]
[1744344648319,0.1,1544.4,1544.3,0.88227818]
[1744344648917,0.1,1544.4,1544.3,0.5211268]
[1744344650523,6.575,1544.4,1544.3,0.5211268]
[1744344651599,0.1,1544.4,1544.3,0.5211268]
[1744344653421,6.575,1544.4,1544.3,0.5211268]
[1744344653619,8.649854,1544.4,1544.3,0.5211268]
[1744344654124,6.47595,1544.2,1543.9,6.47687]
[1744344654524,6.47595,1544.2,1544.0,0.60051665]
[1744344654725,6.47595,1544.2,1544.0,0.96082773]
[1744344655453,6.47595,1544.2,1544.0,0.60051665]
[1744344657893,6.47548,1544.3,1544.0,0.60051665]
[1744344658103,6.47548,1544.3,1544.0,7.07700665]
[1744344658400,6.47548,1544.3,1544.1,0.36027141]
[1744344658602,6.47548,1544.3,1544.1,0.96078806]
[1744344658831,6.47548,1544.3,1544.1,0.60051665]
[1744344659033,6.47548,1544.3,1544.0,6.47649]
[1744344659832,6.47548,1544.3,1544.1,0.6005477]
[1744344660737,6.47548,1544.3,1544.0,7.0770477]
[1744344660925,7.34498,1544.4,1544.1,8.33042633]
[1744344661503,7.34498,1544.4,1544.1,1.85418633]
[1744344661706,7.34498,1544.4,1544.1,1.49380477]
[1744344662052,7.34498,1544.4,1544.1,7.97002477]
[1744344662220,6.57508,1544.4,1544.1,7.97002477]
[1744344662411,6.57508,1544.4,1544.2,0.6007879]
[1744344662610,6.57508,1544.4,1544.2,0.96125826]
[1744344662813,13.05034,1544.4,1544.2,0.36047036]
[1744344663312,13.05034,1544.4,1544.1,7.97002477]
[1744344663642,6.57508,1544.4,1544.2,0.60084856]
[1744344665412,13.0503,1544.4,1544.2,0.60084856]
[1744344665614,6.57508,1544.4,1544.2,0.60084856]
[1744344667850,6.57508,1544.4,1544.3,0.51901955]
[1744344668549,6.57508,1544.4,1544.1,7.96988477]
[1744344668919,6.57508,1544.4,1544.2,0.87996639]
[1744344669751,0.1,1544.4,1544.2,0.87996639]
[1744344669965,0.1,1544.4,1544.3,7.86300126]
[1744344670120,0.1,1544.4,1544.3,11.27718193]
[1744344670556,0.1,1544.4,1544.3,11.63774376]
[1744344670755,0.1,1544.4,1544.3,2.26717742]
[1744344671722,0.1,1544.4,1544.3,8.74259742]
[1744344671923,0.1,1544.4,1544.3,11.02368147]
[1744344672919,0.1,1544.4,1544.3,8.74259742]
[1744344673115,0.1,1544.4,1544.3,2.26717742]
[1744344673346,0.1,1544.4,1544.3,1.48107742]
[1744344675966,0.1,1544.4,1544.3,7.95649742]
[1744344677743,0.1,1544.4,1544.3,11.64094376]
[1744344677990,0.1,1544.4,1544.3,20.87154116]
[1744344678165,0.1,1544.4,1544.3,17.97639482]
[1744344678975,0.1,1544.4,1544.3,17.42639482]
[1744344680142,0.1,1544.4,1544.3,17.97639482]
[1744344683279,0.1,1544.4,1544.3,20.97639482]
[1744344683580,0.1,1544.4,1544.3,21.85809177]
[1744344687996,0.1,1544.4,1544.3,22.1776904]
[1744344688287,0.1,1544.4,1544.3,21.85809177]
[1744344688450,0.1,1544.4,1544.3,20.97639482]
[1744344689251,0.1,1544.4,1544.3,16.63709482]
[1744344689486,0.1,1544.4,1544.3,17.01649742]
[1744344689787,0.1,1544.4,1544.3,1.48107742]
[1744344691365,6.575,1544.4,1544.3,1.48107742]
[1744344691752,6.575,1544.4,1544.3,0.51903433]
[1744344691955,13.0503,1544.4,1544.1,12.30995635]
[1744344692157,0.7789,1544.3,1544.2,0.43218656]
[1744344692379,0.7789,1544.3,1544.1,12.30995635]
[1744344692691,0.7789,1544.3,1544.2,0.43218656]
[1744344693107,0.7789,1544.3,1544.1,12.30995635]
[1744344693394,0.7789,1544.3,1544.2,0.43212742]
[1744344693690,0.7789,1544.3,1544.1,12.53623]
[1744344693897,0.8789,1544.4,1544.2,0.4321422]
[1744344694063,0.8789,1544.4,1544.2,7.76491453]
[1744344694264,0.8789,1544.4,1544.2,6.83596503]
[1744344694566,0.8789,1544.4,1544.3,0.43210923]
[1744344695155,0.8789,1544.4,1544.1,17.33264934]
[1744344695359,0.8789,1544.4,1544.2,1.03275392]
[1744344695991,0.8789,1544.4,1544.2,0.43217178]
[1744344696194,0.8789,1544.4,1544.1,17.82319742]
[1744344696402,0.8789,1544.4,1544.2,0.43215699]
[1744344696586,0.8789,1544.4,1544.1,15.92192442]
[1744344696892,0.8789,1544.4,1544.2,0.43215699]
[1744344697065,0.8789,1544.4,1544.2,1.03289017]
[1744344697273,0.8789,1544.4,1544.2,0.60073318]
[1744344697471,0.8789,1544.4,1544.3,0.79253309]
[1744344697793,0.8789,1544.4,1544.3,1.39326627]
[1744344698163,7.3539,1544.4,1544.3,1.39326627]
[1744344698781,7.3539,1544.4,1544.3,0.79253309]
[1744344698995,7.3539,1544.4,1544.3,0.43210923]
[1744344699195,7.3539,1544.4,1544.1,15.92194442]
[1744344699400,7.3539,1544.4,1544.2,1.03297301]
[1744344699901,7.3539,1544.4,1544.2,0.43218656]
[1744344700269,7.3539,1544.4,1544.1,15.92185442]
[1744344700569,7.3539,1544.4,1544.2,0.43217178]
[1744344700770,7.3539,1544.4,1544.1,9.86185442]
[1744344700771,13.82911,1544.4,1544.1,9.86185442]
[1744344701002,13.82911,1544.4,1544.2,0.43217178]
[1744344701171,13.82911,1544.4,1544.2,0.6007792]
[1744344701372,13.82911,1544.4,1544.3,0.43209444]
[1744344701564,7.3539,1544.4,1544.3,0.43209444]
[1744344701785,7.3539,1544.4,1544.1,3.38569442]
[1744344701994,7.3539,1544.4,1544.2,0.43215699]
[1744344702195,7.3539,1544.4,1544.1,9.86193442]
[1744344702399,0.8789,1544.4,1544.2,0.43217178]
[1744344702603,0.8789,1544.4,1544.2,0.60065738]
[1744344702770,0.8789,1544.4,1544.3,0.43209444]
[1744344703621,7.35405,1544.4,1544.1,9.86177442]
[1744344703771,13.82927,1544.4,1544.2,0.43217178]
[1744344704101,7.35405,1544.4,1544.1,9.86177442]
[1744344704266,7.35405,1544.4,1544.3,0.43218311]
[1744344704470,13.8293,1544.4,1544.2,1.0328086]
[1744344704671,13.8293,1544.4,1544.3,0.43221267]
[1744344705573,2.26183,1544.4,1544.0,6.06]
[1744344705700,2.26183,1544.4,1543.8,15.93149634]
[1744344705701,6.47687,1544.0,1543.8,6.06]
[1744344705904,0.7952,1543.9,1543.7,6.06]
[1744344706105,0.7952,1543.9,1543.6,22.43365269]
[1744344706299,0.7952,1543.9,1543.7,2.84401377]
[1744344706626,0.7952,1543.9,1543.8,0.36039768]
[1744344706819,0.7952,1543.9,1543.8,0.96104618]
[1744344707115,7.2715,1544.1,1543.8,10.33356252]
[1744344707310,6.4759,1544.2,1543.9,1.03335625]
[1744344707513,7.37029,1544.4,1544.0,15.84829634]
[1744344707679,7.37029,1544.4,1544.0,21.90829634]
[1744344707883,13.84559,1544.4,1544.0,15.43165634]
[1744344708106,7.37029,1544.4,1544.0,21.90814634]
[1744344708304,7.37029,1544.4,1544.0,23.58562902]
[1744344708705,0.8952,1544.4,1544.1,6.47626]
[1744344709013,0.8952,1544.4,1544.2,6.47582]
[1744344709235,0.8952,1544.4,1544.1,6.47626]
[1744344709443,0.8952,1544.4,1544.1,12.95232]
[1744344709711,0.8952,1544.4,1544.1,15.19552527]
[1744344709915,0.8952,1544.4,1544.1,15.67255398]
[1744344710118,0.8952,1544.4,1544.1,9.19645398]
[1744344711116,7.37021,1544.4,1544.1,9.19645398]
[1744344711316,13.84554,1544.4,1544.1,2.72039398]
[1744344711522,13.84554,1544.4,1544.1,0.47702871]
[1744344711688,13.84554,1544.4,1544.0,17.10914902]
[1744344712017,13.84554,1544.4,1544.0,23.58566902]
[1744344712210,7.37021,1544.4,1544.1,0.60000896]
[1744344712386,13.84544,1544.4,1544.1,0.60000896]
[1744344712821,13.84544,1544.4,1544.2,0.43462622]
[1744344713021,13.84544,1544.4,1544.1,0.60000896]
[1744344713221,7.37021,1544.4,1544.2,0.43464101]
[1744344713420,13.84543,1544.4,1544.1,1.08882176]
[1744344713599,7.37021,1544.4,1544.2,0.4346558]
[1744344713789,13.84544,1544.4,1544.1,0.4888128]
[1744344713990,13.84544,1544.4,1544.2,0.43468538]
[1744344714202,13.84544,1544.4,1544.0,23.58564902]
[1744344714399,7.37021,1544.4,1544.1,2.79332764]
[1744344714710,7.37021,1544.4,1544.1,3.15348451]
[1744344715423,7.37021,1544.4,1544.1,9.62970451]
[1744344715622,7.37021,1544.4,1544.1,9.26954764]
[1744344716010,0.1,1544.4,1544.2,7.22609]
[1744344716215,0.1,1544.4,1544.3,14.24263703]
[1744344716516,0.1,1544.4,1544.3,15.20288288]
[1744344716712,0.1,1544.4,1544.3,14.65288288]
[1744344722518,0.1,1544.4,1544.3,15.98808288]
[1744344727551,0.1,1544.4,1544.3,18.98808288]
[1744344730416,1.1841378,1545.1,1544.9,6.47276]
[1744344730637,1.1841378,1545.1,1545.0,0.42824755]
[1744344730844,1.1841378,1545.1,1545.0,7.37518702]
[1744344730845,0.3940378,1545.1,1545.0,7.37518702]
[1744344731048,0.3940378,1545.1,1545.0,7.50089322]
[1744344731229,0.3940378,1545.1,1545.0,7.8609834]
[1744344731457,0.3940378,1545.1,1545.0,9.29435674]
[1744344731629,0.3940378,1545.1,1545.0,11.58934741]
[1744344731835,0.3940378,1545.1,1545.0,18.19934741]
[1744344732034,0.3940378,1545.1,1545.0,22.65940107]
[1744344732446,0.3940378,1545.1,1545.0,23.25741007]
[1744344733029,0.3940378,1545.1,1545.0,22.39281173]
[1744344733664,1.1841378,1545.1,1545.0,7.93394839]
[1744344733862,1.1841378,1545.1,1545.0,7.44634673]
[1744344734029,1.1841378,1545.1,1545.0,6.84833773]
[1744344734747,1.1841378,1545.1,1545.0,6.97226717]
[1744344735063,1.1841378,1545.1,1545.0,13.44475717]
[1744344735236,0.3940378,1545.1,1545.0,15.72602452]
[1744344735863,0.3940378,1545.1,1545.0,16.87349597]
[1744344736039,0.3940378,1545.1,1545.0,17.67569597]
[1744344736241,0.3940378,1545.1,1545.0,21.03412512]
[1744344739656,7.8e-06,1545.1,1545.0,21.03412512]
[1744344739874,0.7901,1545.7,1545.5,6.47003]
[1744344740073,0.7901,1545.7,1545.5,13.257253]
[1744344740273,0.7901,1545.7,1545.6,6.85687751]
[1744344740644,0.7901,1545.7,1545.6,0.38690751]
[1744344740845,7.25966,1545.7,1545.6,0.38690751]
[1744344741041,0.7901,1545.7,1545.6,0.38690751]
[1744344741242,13.02078,1545.9,1545.6,6.92224321]
[1744344741243,0.7901,1545.9,1545.6,6.92224321]
[1744344741441,0.7901,1545.9,1545.7,6.4695]
[1744344741674,0.7901,1545.9,1545.8,0.38649472]
[1744344742052,0.7901,1545.9,1545.6,16.11715066]
[1744344742263,0.7901,1545.9,1545.7,6.85599716]
[1744344742663,0.7901,1545.9,1545.7,0.38655716]
[1744344743152,7.25887,1545.9,1545.7,0.38655716]
[1744344744973,0.7901,1545.9,1545.7,0.38655716]
[1744344745145,0.7901,1545.9,1545.7,8.19579716]
[1744344745344,0.7901,1545.9,1545.7,1.72630716]
[1744344745545,7.25897,1545.9,1545.7,0.38655716]
[1744344745951,13.72804,1545.9,1545.7,0.38655716]
[1744344746163,6.46914,1545.8,1545.7,0.38655716]
[1744344746360,7.23334,1545.8,1545.7,0.38655716]
[1744344746848,6.46991,1545.7,1545.4,6.06]
[1744344747048,7.23411,1545.7,1545.5,0.38341058]
[1744344747257,0.7642,1545.7,1545.5,0.86205142]
[1744344747466,0.7642,1545.7,1545.5,0.38341058]
[1744344747662,0.7642,1545.7,1545.5,6.85376058]
[1744344747862,0.7642,1545.7,1545.5,13.32398058]
[1744344748080,0.7642,1545.8,1545.5,15.55189327]
[1744344748260,0.7642,1545.8,1545.6,6.46991]
[1744344748467,0.7642,1545.8,1545.7,0.38360055]
[1744344749668,7.23334,1545.8,1545.7,0.38360055]
[1744344749866,7.23334,1545.8,1545.5,12.94047]
[1744344750068,0.7642,1545.8,1545.6,0.38367777]
[1744344751779,0.7642,1545.8,1545.6,6.85361777]
[1744344752380,7.23254,1546.0,1545.6,11.94308465]
[1744344752773,7.23254,1546.0,1545.6,8.23533831]
[1744344752954,7.23254,1546.0,1545.6,11.13048465]
[1744344753561,7.23254,1546.0,1545.7,6.46956]
[1744344753761,7.23254,1546.0,1545.7,6.85316055]
[1744344754965,7.23254,1546.0,1545.7,9.42466475]
[1744344755283,0.7642,1546.0,1545.7,9.42466475]
[1744344755448,13.70103,1546.0,1545.7,6.85297055]
[1744344755852,7.23251,1546.0,1545.7,6.85297055]
[1744344756063,0.7642,1546.0,1545.7,6.85297055]
[1744344756484,7.23252,1546.0,1545.7,6.85297055]
[1744344758151,0.7642,1546.0,1545.7,13.32235055]
[1744344758372,0.7642,1546.0,1545.7,15.54919769]
[1744344758853,0.7642,1546.0,1545.7,9.07981769]
[1744344759053,7.23253,1546.0,1545.7,9.07981769]
[1744344759286,7.23253,1546.0,1545.7,6.85297055]
[1744344759484,13.70105,1546.0,1545.7,0.38360055]
[1744344760388,7.23292,1545.9,1545.8,0.95886011]
[1744344760685,7.23292,1545.9,1545.8,0.74233872]
[1744344761181,7.23292,1545.9,1545.8,0.38277425]
[1744344761687,7.23292,1545.9,1545.6,12.52987]
[1744344761986,7.23292,1545.9,1545.8,0.38277425]
[1744344762183,13.7019,1545.9,1545.7,0.982413]
[1744344762389,13.7019,1545.9,1545.8,0.9823358]
[1744344762390,7.23292,1545.9,1545.8,0.9823358]
[1744344762786,7.23292,1545.9,1545.8,0.38277425]
[1744344762986,7.23292,1545.9,1545.6,6.06]
[1744344763157,7.23292,1545.9,1545.8,0.38277425]
[1744344763359,7.23292,1545.9,1545.7,0.98256241]
[1744344763585,7.23292,1545.9,1545.8,1.34240008]
[1744344765392,0.7642,1545.9,1545.8,1.34240008]
[1744344766065,7.23292,1545.9,1545.8,1.34240008]
[1744344766471,8.603051,1545.9,1545.2,6.06]
[1744344766690,10.25661,1545.4,1545.3,0.91917666]
[1744344767000,16.79961,1545.4,1545.3,0.91917666]
[1744344767167,13.79961,1545.4,1545.3,0.31793755]
[1744344767364,13.79961,1545.4,1544.9,16.09103197]
[1744344767365,20.27067,1545.4,1545.0,6.47232]
[1744344767580,13.79961,1545.4,1545.3,0.2538124]
[1744344767778,13.79961,1545.4,1545.1,0.647232]
[1744344768090,0.36288942,1545.3,1545.2,0.25387488]
[1744344768798,0.36288942,1545.3,1545.2,12.78552488]
[1744344769095,7.25558,1545.7,1545.3,7.26361]
[1744344769266,13.72548,1545.7,1545.3,0.7925]
[1744344769468,6.83266059,1545.6,1545.3,0.7925]
[1744344769880,6.83266059,1545.6,1545.4,0.25349155]
[1744344770396,0.36260059,1545.6,1545.4,0.25349155]
[1744344770602,6.47007,1545.6,1545.4,0.25349155]
[1744344770820,12.94037,1545.6,1545.4,0.25349155]
[1744344771420,6.47039,1545.5,1545.4,0.25349155]
[1744344771916,6.47007,1545.6,1545.4,0.25349155]
[1744344772297,12.94031,1545.6,1545.4,0.25349155]
[1744344772890,6.47039,1545.5,1545.4,0.25349155]
[1744344773395,6.47007,1545.6,1545.4,0.25349155]
[1744344774918,13.7253,1545.7,1545.4,0.25349155]
[1744344775483,7.25543,1545.7,1545.4,0.25349155]
[1744344775687,13.72521,1545.7,1545.4,0.25349155]
[1744344776921,8.624831,1545.9,1545.4,7.47584971]
[1744344777092,7.2547,1545.9,1545.5,12.9405]
[1744344777292,7.2547,1545.9,1545.6,0.25332238]
[1744344777921,13.72371,1545.9,1545.6,0.25332238]
[1744344778115,13.72374,1545.9,1545.6,0.25332238]
[1744344778312,7.2547,1545.9,1545.6,0.25332238]
[1744344778626,9.281406,1545.9,1545.6,0.25332238]
[1744344779603,6.46933,1545.8,1545.6,0.25332238]
[1744344780532,6.46933,1545.8,1545.6,0.7412286]
[1744344781735,9.281306,1545.9,1545.6,7.2111986]
[1744344782723,15.750246,1545.9,1545.6,7.2111986]
[1744344782929,9.281306,1545.9,1545.6,7.2111986]
[1744344783210,20.23827,1546.0,1545.7,6.46954]
[1744344783442,12.93798,1545.9,1545.6,0.7412286]
[1744344783602,6.46894,1545.9,1545.8,0.25425817]
[1744344783803,6.46894,1545.9,1545.6,6.95786622]
[1744344784121,13.76971,1546.0,1545.6,6.95786622]
[1744344784122,7.3014,1546.0,1545.7,6.72370536]
[1744344784549,7.3014,1546.0,1545.7,19.25311536]
[1744344784705,6.539,1546.0,1545.7,12.78370536]
[1744344785255,6.539,1546.0,1545.7,19.25307536]
[1744344785458,6.539,1546.0,1545.7,21.22723352]
[1744344785939,6.539,1546.0,1545.8,6.46912]
[1744344786108,6.539,1546.0,1545.9,0.25418099]
[1744344786312,6.46755,1546.2,1545.9,6.72279099]
[1744344786510,13.77642264,1546.3,1546.0,0.8223]
[1744344786707,13.77642264,1546.3,1546.1,0.25401191]
[1744344787748,6.54688264,1546.3,1546.1,0.25401191]
[1744344790855,0.00788264,1546.3,1546.1,6.72179191]
[1744344791055,0.00788264,1546.3,1546.2,13.34976]
[1744344791213,0.00788264,1546.3,1546.2,13.70858266]
[1744344791413,0.00788264,1546.3,1546.2,6.67083642]
[1744344791910,0.00788264,1546.3,1546.2,6.31201376]
[1744344792124,0.00788264,1546.3,1546.2,13.69881022]
[1744344792951,0.00788264,1546.3,1546.2,7.23135022]
[1744344793553,0.00788264,1546.3,1546.2,13.69881022]
[1744344794858,0.00788264,1546.3,1546.2,7.23135022]
[1744344795153,6.47493264,1546.3,1546.2,6.31201376]
[1744344795455,7.28173264,1546.3,1546.2,6.31201376]
[1744344800652,7.28173264,1546.3,1546.2,0.25201376]
[1744344801065,7.28173264,1546.3,1546.0,6.53693635]
[1744344801066,6.46747,1546.2,1546.0,6.53693635]
[1744344801357,7.28173264,1546.3,1545.7,8.80179816]
[1744344801358,6.46851,1546.0,1545.7,8.80179816]
[1744344801679,12.93705,1546.0,1545.7,6.8277]
[1744344801972,6.46851,1546.0,1545.7,6.8277]
[1744344802123,12.93702,1546.0,1545.7,6.8277]
[1744344802330,6.46888,1545.9,1545.7,6.06]
[1744344802650,6.46888,1545.9,1545.6,0.48790622]
[1744344802651,6.46943,1545.8,1545.6,6.54790622]
[1744344802830,6.46943,1545.8,1545.6,6.06]
[1744344803350,12.93889,1545.8,1545.6,6.06]
[1744344804553,0.7537,1546.0,1545.6,6.74277]
[1744344804717,6.47495264,1546.3,1546.0,0.7677]
[1744344804922,6.47495264,1546.3,1546.0,13.29587]
[1744344805135,6.46766,1546.2,1546.0,6.8277]
[1744344805455,6.46788,1546.1,1546.0,6.06]
[1744344805843,6.4686,1546.0,1545.7,6.8277]
[1744344806956,6.4686,1546.0,1545.8,0.35912777]
[1744344807456,12.93716,1546.0,1545.8,0.35912777]
[1744344807751,6.46856,1546.0,1545.8,0.35912777]
[1744344808538,12.93707,1546.0,1545.8,0.35912777]
[1744344808759,6.47493264,1546.3,1545.9,9.74812773]
[1744344808760,0.00788264,1546.3,1545.9,9.74812773]
[1744344808954,0.00788264,1546.3,1546.0,6.46813]
[1744344810358,0.00788264,1546.3,1546.1,0.35919434]
[1744344812573,0.00788264,1546.3,1546.1,0.849592]
[1744344813169,0.00788264,1546.3,1546.1,0.49039766]
[1744344813374,0.00788264,1546.3,1546.0,6.46813]
[1744344813574,0.80018264,1546.3,1545.9,6.8619]
[1744344813776,6.46811,1546.1,1545.9,6.06]
[1744344814078,6.46811,1546.1,1546.0,0.35968267]
[1744344815275,6.46811,1546.1,1545.9,6.53807663]
[1744344815472,6.46759,1546.2,1545.9,6.53807663]
[1744344815677,12.93532,1546.2,1545.9,6.53807663]
[1744344816056,6.46759,1546.2,1545.9,6.53807663]
[1744344816759,6.46759,1546.2,1546.0,0.35968605]
[1744344817779,6.46759,1546.2,1546.1,0.20690195]
[1744344818178,7.84107526,1546.2,1546.1,0.20690195]
[1744344818380,0.7881,1547.6,1546.2,6.8351]
[1744344818555,6.46342,1547.2,1547.0,0.7751]
[1744344818747,6.80005574,1547.3,1547.1,0.20597715]
[1744344818947,0.68000557,1547.3,1547.1,0.20597715]
[1744344819165,7.25138,1547.2,1547.1,0.20597715]
[1744344819365,0.7881,1547.2,1546.7,6.46533]
[1744344819679,0.7881,1547.2,1546.8,6.66860044]
[1744344819982,0.7881,1547.2,1546.9,0.59750816]
[1744344820174,6.46193,1547.6,1547.0,7.44261952]
[1744344820175,0.7881,1547.6,1547.0,7.44261952]
[1744344820379,6.46232,1547.5,1547.0,14.50407768]
[1744344820873,6.46232,1547.5,1547.1,0.59750816]
[1744344821079,7.24974,1547.6,1547.1,7.06117816]
[1744344821381,0.724974,1547.5,1547.2,6.66480911]
[1744344821546,7.24974,1547.6,1547.3,0.59750816]
[1744344821742,7.24974,1547.6,1547.4,0.20154511]
[1744344821948,7.24974,1547.6,1547.3,0.59750816]
[1744344822160,0.7881,1547.6,1547.4,0.20164831]
[1744344822363,0.7881,1547.6,1547.2,6.46311]
[1744344822649,1.513034,1547.6,1547.3,0.20172531]
[1744344822847,7.24973,1547.6,1547.3,0.20172531]
[1744344823582,0.55,1547.9,1547.5,6.46188]
[1744344823969,7.01042,1547.9,1547.6,0.20109722]
[1744344824360,0.55,1547.9,1547.8,9.74312661]
[1744344824584,0.55,1547.9,1547.8,14.88162472]
[1744344824752,1.3696,1547.9,1547.8,6.85365772]
[1744344824952,7.82996,1547.9,1547.8,0.79365772]
[1744344825348,7.82996,1547.9,1547.8,0.20079033]
[1744344825553,7.82996,1547.9,1547.5,6.94009352]
[1744344825780,7.82996,1547.9,1547.6,0.2006939]
[1744344825955,0.55,1547.9,1547.6,1.0332939]
[1744344826154,0.55,1547.9,1547.8,6.46078]
[1744344826372,0.55,1547.9,1547.8,12.72131992]
[1744344827094,0.55,1547.9,1547.8,13.31277318]
[1744344827259,0.55,1547.9,1547.8,14.14537318]
[1744344827459,0.55,1547.9,1547.8,16.53424516]
[1744344827770,0.55,1547.9,1547.8,13.07346516]
[1744344827971,0.55,1547.9,1547.8,19.53424516]
[1744344828167,0.55,1547.9,1547.8,13.07346516]
[1744344828383,0.55,1547.9,1547.8,19.53424516]
[1744344828556,0.55,1547.9,1547.8,15.9427919]
[1744344828752,0.55,1547.9,1547.8,13.55391992]
[1744344828951,0.55,1547.9,1547.8,17.10391992]
[1744344829159,0.8196,1549.5,1548.1,0.55]
[1744344829395,6.16,1550.3,1549.9,0.8326]
[1744344829592,6.16,1550.3,1549.9,1.02368044]
[1744344829593,6.4504,1550.3,1549.9,1.02368044]
[1744344829778,6.45102,1550.2,1549.9,0.19108044]
[1744344829958,6.45113,1550.2,1549.6,0.8326]
[1744344830304,56.45161,1550.0,1549.9,0.19101425]
[1744344830515,0.8196,1549.5,1548.9,0.8326]
[1744344830677,0.8196,1549.5,1548.9,7.28855]
[1744344831005,6.45288,1549.7,1549.1,6.45507]
[1744344831204,50.0,1550.0,1549.0,4.11494661]
[1744344831361,6.45221,1549.9,1549.2,6.45464]
[1744344831561,3.0,1549.9,1549.4,6.45406]
[1744344831760,6.4521,1549.9,1549.4,6.45406]
[1744344831962,1.46481,1549.8,1549.1,0.8326]
[1744344832264,10.27208,1549.8,1549.1,0.8326]
[1744344832462,10.27208,1549.8,1549.2,6.45453]
[1744344832768,6.45314,1549.7,1549.3,0.17619027]
[1744344833305,6.45314,1549.7,1549.2,6.45488]
[1744344833459,6.45314,1549.7,1549.4,0.17611343]
[1744344833653,0.645314,1549.6,1549.3,0.17619027]
[1744344833859,6.4539,1549.5,1548.9,6.93556725]
[1744344834058,10.2723,1549.8,1549.4,0.17611343]
[1744344834307,7.2723,1549.8,1549.3,6.45445]
[1744344834471,0.8196,1549.8,1549.3,6.45445]
[1744344834696,7.27226,1549.8,1549.4,0.17611343]
[1744344834910,0.727226,1549.7,1549.4,0.17611343]
[1744344835111,0.727226,1549.7,1549.4,6.63019343]
[1744344835313,7.424,1549.9,1549.4,6.45408]
[1744344835926,7.424,1549.9,1549.5,6.62085772]
[1744344836131,50.0,1550.0,1549.6,6.45327]
[1744344836318,50.0,1550.0,1549.7,6.45246]
[1744344836625,50.0,1550.0,1549.8,0.16558483]
[1744344837033,50.0,1550.0,1549.9,6.45202]
[1744344837332,0.1,1550.4,1550.3,6.45036]
[1744344837486,0.1,1550.4,1550.3,24.25756]